bitfinex-derivatives/quotes_SOLF0:USTF0_20260308
["timestamp","ask_amount","ask_price","bid_price","bid_amount"]
[1772945293962,7.38843975,82.17,82.121,4.01772176]
[1772945294162,3.54953323,82.17,82.121,4.01772176]
[1772945294565,3.55550132,82.17,82.121,4.01772176]
[1772945294963,3.83890652,82.179,82.121,4.01772176]
[1772945305474,2.94708819,82.17,82.121,4.01772176]
[1772945306075,3.83890652,82.179,82.121,4.01772176]
[1772945311582,3.83890652,82.179,82.123,4.01772176]
[1772945318383,3.83890652,82.179,82.125,3.84120406]
[1772945319688,3.83890652,82.179,82.124,10.959]
[1772945319689,3.83890652,82.179,82.127,3.84120406]
[1772945320284,3.83890652,82.179,82.131,3.84120406]
[1772945320685,3.76475571,82.189,82.141,3.84120406]
[1772945323696,3.76475571,82.201,82.151,3.84120406]
[1772945323995,302.44165794,82.207,82.151,3.84120406]
[1772945323996,3.76475571,82.199,82.151,3.84120406]
[1772945325292,3.76475571,82.199,82.153,3.84120406]
[1772945330298,3.76475571,82.206,82.153,3.84120406]
[1772945330795,3.55550132,82.2,82.153,3.84120406]
[1772945330998,7.32025703,82.2,82.153,3.84120406]
[1772945331200,3.76475571,82.199,82.153,3.84120406]
[1772945331800,3.76475571,82.199,82.156,3.84120406]
[1772945341499,3.76475571,82.199,82.112,12.17]
[1772945341500,3.76475571,82.209,82.171,3.84120406]
[1772945341803,3.76475571,82.219,82.171,3.84120406]
[1772945342103,3.8293993,82.209,82.171,3.84120406]
[1772945343807,3.8293993,82.209,82.173,3.86428397]
[1772945349609,4.039015,82.218,82.175,3.86428397]
[1772945350814,4.039015,82.218,82.179,3.86428397]
[1772945351008,4.03787186,82.199,82.161,3.86428397]
[1772945352817,4.03787186,82.199,82.162,3.86428397]
[1772945354316,4.039015,82.209,82.162,3.86428397]
[1772945355014,4.039015,82.209,82.166,3.86428397]
[1772945362712,4.039015,82.209,82.168,3.86428397]
[1772945363822,4.039015,82.209,82.151,3.86428397]
[1772945364918,4.039015,82.207,82.152,3.86428397]
[1772945365820,4.039015,82.207,82.156,3.86428397]
[1772945367025,4.039015,82.207,82.161,3.86428397]
[1772945368125,4.039015,82.199,82.161,3.86428397]
[1772945368618,4.039015,82.199,82.151,10.955]
[1772945368619,4.039015,82.199,82.151,3.86428397]
[1772945373924,4.039015,82.199,82.153,3.71854411]
[1772945375328,4.039015,82.199,82.156,3.71854411]
[1772945375731,4.039015,82.199,82.161,3.71854411]
[1772945375933,4.039015,82.199,82.151,3.71854411]
[1772945376736,3.94943459,82.198,82.151,3.71854411]
[1772945377935,3.94943459,82.198,82.156,3.71854411]
[1772945379533,3.94943459,82.214,82.161,3.71854411]
[1772945380931,3.94943459,82.214,82.163,3.71854411]
[1772945381330,3.94943459,82.212,82.163,3.71854411]
[1772945381529,3.94943459,82.209,82.163,3.71854411]
[1772945383536,3.74699934,82.207,82.163,3.71854411]
[1772945385333,3.71608069,82.219,82.163,3.71854411]
[1772945385636,3.71608069,82.219,82.171,3.71854411]
[1772945388435,3.71608069,82.219,82.181,3.71854411]
[1772945390841,3.68628759,82.229,82.181,3.71854411]
[1772945393439,3.68628759,82.229,82.183,3.71854411]
[1772945394339,3.68628759,82.229,82.185,3.71854411]
[1772945394545,3.68628759,82.229,82.19,3.5511193]
[1772945394846,3.68628759,82.229,82.191,3.71854411]
[1772945395346,3.6508153,82.239,82.191,3.71854411]
[1772945395951,3.6508153,82.239,82.193,3.71854411]
[1772945399348,3.49433081,82.237,82.182,3.71854411]
[1772945399553,3.49433081,82.229,82.182,3.71854411]
[1772945401458,3.5511193,82.23,82.182,3.71854411]
[1772945401459,3.43668088,82.228,82.182,3.71854411]
[1772945401956,3.43978496,82.199,82.15,4.00121488]
[1772945402157,3.4375069,82.189,82.15,4.00121488]
[1772945402460,3.4375069,82.189,82.069,52.96390047]
[1772945402461,3.43782608,82.179,82.131,4.00121488]
[1772945403861,3.43782608,82.179,82.133,3.73226047]
[1772945406062,3.43782608,82.179,82.141,3.73226047]
[1772945406661,14.1175462,82.19,82.141,3.73226047]
[1772945406964,3.1675462,82.19,82.141,3.73226047]
[1772945409363,3.16770747,82.189,82.141,3.73226047]
[1772945418773,3.16770747,82.189,82.142,10.957]
[1772945418976,3.16770747,82.189,82.143,3.73226047]
[1772945421274,3.16770747,82.189,82.151,3.73226047]
[1772945421879,3.06585087,82.208,82.151,3.73226047]
[1772945422078,3.06585087,82.208,82.154,3.73226047]
[1772945422279,3.06585087,82.208,82.161,3.73226047]
[1772945436295,3.06585087,82.208,82.164,3.8675528]
[1772945436601,3.06585087,82.208,82.115,21.921]
[1772945436602,3.16046924,82.219,82.171,3.8675528]
[1772945447800,3.55350239,82.21,82.165,10.954]
[1772945448005,2.95105935,82.209,82.161,3.8675528]
[1772945451407,2.95105935,82.209,82.164,3.8675528]
[1772945452009,3.01870683,82.199,82.154,3.8675528]
[1772945452202,3.0184,82.189,82.141,3.8675528]
[1772945455812,3.0184,82.189,82.142,3.8675528]
[1772945456807,3.0184,82.189,82.145,10.956]
[1772945457005,3.0184,82.189,82.146,3.8675528]
[1772945464411,3.39385043,82.179,82.135,14.64939829]
[1772945464604,3.39385043,82.179,82.136,3.69139829]
[1772945466914,3.39385043,82.179,82.137,3.69139829]
[1772945467116,3.39385043,82.179,82.141,3.69139829]
[1772945468011,3.39385043,82.179,82.119,205.54949255]
[1772945468315,3.39392581,82.159,82.118,3.69139829]
[1772945468519,3.39392581,82.149,82.101,3.69139829]
[1772945470210,3.39392581,82.149,82.113,3.69139829]
[1772945470612,3.31292965,82.159,82.113,3.69139829]
[1772945470813,3.31292965,82.149,82.091,3.69139829]
[1772945471008,3.55350239,82.17,82.111,3.69139829]
[1772945471210,3.31292965,82.169,82.111,3.69139829]
[1772945472216,3.31292965,82.169,82.11,3.55350239]
[1772945472217,3.31292965,82.169,82.112,3.69139829]
[1772945473920,3.31292965,82.169,82.114,3.69139829]
[1772945475314,3.31292965,82.169,82.119,3.69139829]
[1772945475821,3.31292965,82.169,82.121,3.69139829]
[1772945476223,3.31292965,82.169,82.131,3.69139829]
[1772945480029,3.55444995,82.18,82.131,3.69139829]
[1772945480631,3.33024232,82.184,82.141,3.69139829]
[1772945481226,10.948,82.205,82.13,3.55444995]
[1772945481227,3.33024232,82.179,82.13,3.69139829]
[1772945482621,3.33024232,82.179,82.13,3.55444995]
[1772945482827,3.33024232,82.179,82.131,3.69139829]
[1772945486636,3.33024232,82.179,82.133,3.69139829]
[1772945489636,3.33024232,82.179,82.137,3.69139829]
[1772945489834,3.33024232,82.179,82.141,3.69139829]
[1772945491234,3.33024232,82.179,82.144,3.69139829]
[1772945492439,10.948,82.205,82.098,30.31125027]
[1772945492440,3.31767165,82.214,82.146,3.74176555]
[1772945492638,6.8721216,82.2,82.151,3.74176555]
[1772945492837,3.31767165,82.2,82.151,3.74176555]
[1772945494837,3.55444995,82.21,82.151,3.74176555]
[1772945495044,3.33948679,82.209,82.151,3.74176555]
[1772945496040,3.33948679,82.209,82.147,10.956]
[1772945496041,3.33948679,82.209,82.165,3.74176555]
[1772945498838,3.33948679,82.209,82.168,3.74176555]
[1772945499038,3.3401912,82.219,82.168,3.74176555]
[1772945501544,3.55444995,82.21,82.168,3.74176555]
[1772945501744,3.32057329,82.209,82.168,3.74176555]
[1772945505658,3.32057329,82.209,82.17,3.55444995]
[1772945505852,3.32057329,82.209,82.171,3.74176555]
[1772945507050,3.32057329,82.209,82.173,3.74176555]
[1772945518265,7.04690109,82.22,82.173,3.74176555]
[1772945518563,3.49245114,82.22,82.173,3.74176555]
[1772945519165,3.49245114,82.22,82.18,3.55444995]
[1772945519367,3.49245114,82.22,82.182,3.74176555]
[1772945519566,3.49245114,82.229,82.182,3.74176555]
[1772945519761,3.49245114,82.229,82.185,3.74176555]
[1772945524270,3.49245114,82.229,82.187,4.04618753]
[1772945525068,2.88086284,82.209,82.151,4.04618753]
[1772945526572,2.88086284,82.209,82.16,3.55444995]
[1772945526776,2.88086284,82.209,82.168,4.04618753]
[1772945527274,2.88086284,82.209,82.17,4.04618753]
[1772945527775,2.88086284,82.209,82.174,4.04618753]
[1772945527978,2.88407961,82.221,82.174,4.04618753]
[1772945528880,2.88407961,82.221,82.17,3.55444995]
[1772945528881,3.55444995,82.22,82.176,4.04618753]
[1772945529975,3.55444995,82.22,82.179,4.04618753]
[1772945530474,6.58562131,82.23,82.179,4.04618753]
[1772945530674,3.03117136,82.229,82.182,4.04618753]
[1772945531777,3.03117136,82.229,82.184,4.04618753]
[1772945532683,3.55444995,82.23,82.184,4.04618753]
[1772945534287,6.65418446,82.23,82.184,4.04618753]
[1772945536893,6.65418446,82.23,82.188,4.04618753]
[1772945538496,6.64945424,82.23,82.188,4.04618753]
[1772945543897,3.1153123,82.229,82.188,4.04618753]
[1772945550301,3.54971973,82.22,82.188,4.04618753]
[1772945550702,3.1153123,82.229,82.188,4.04618753]
[1772945564007,11.26647021,82.258,82.15,30.31125027]
[1772945564008,3.11798423,82.246,82.191,3.8960395]
[1772945565814,3.11798423,82.246,82.196,3.8960395]
[1772945566920,3.11798423,82.246,82.198,3.8960395]
[1772945568910,3.11798423,82.246,82.199,10.949]
[1772945569211,3.11798423,82.246,82.2,3.8960395]
[1772945571814,3.11798423,82.246,82.202,3.8960395]
[1772945573121,3.11798423,82.246,82.208,3.8960395]
[1772945581121,3.11798423,82.246,82.164,30.31125027]
[1772945581122,3.01401207,82.229,82.185,3.8960395]
[1772945587528,2.99077436,82.219,82.167,3.73086103]
[1772945587724,2.99077436,82.18,82.136,3.73086103]
[1772945587928,2.99077436,82.179,82.136,3.73086103]
[1772945591229,3.54971973,82.2,82.141,3.73086103]
[1772945591428,2.97274193,82.199,82.141,3.73086103]
[1772945592333,2.97274193,82.199,82.14,3.54971973]
[1772945592334,2.97274193,82.199,82.142,3.73086103]
[1772945592528,2.95617599,82.189,82.142,3.73086103]
[1772945602344,2.95617599,82.189,82.119,10.96]
[1772945602345,10.951,82.189,82.119,10.96]
[1772945602547,301.21729585,82.219,82.119,10.96]
[1772945602548,3.018812,82.169,82.121,3.73086103]
[1772945604851,3.07416881,82.159,82.121,3.73086103]
[1772945607156,301.21729585,82.219,82.07,202.58490459]
[1772945607157,3.03461297,82.129,82.082,3.73086103]
[1772945607346,3.03461297,82.129,82.005,37.83135748]
[1772945607347,3.03461297,82.119,82.015,3.73086103]
[1772945607651,3.03461297,82.109,82.051,3.73086103]
[1772945607847,3.03461297,82.121,82.071,3.73086103]
[1772945608042,3.03461297,82.119,82.071,3.73086103]
[1772945611557,3.19545836,82.109,82.013,3.73086103]
[1772945611750,3.19545836,82.099,82.04,3.55356399]
[1772945611950,3.19545836,82.099,82.041,3.73086103]
[1772945612256,3.19545836,82.099,82.05,3.55356399]
[1772945612452,3.30186971,82.079,81.983,3.67069593]
[1772945612645,3.55356399,82.02,81.912,3.67069593]
[1772945612851,3.30186971,82.009,81.935,3.67069593]
[1772945613151,9.78848536,82.077,81.911,16.85252806]
[1772945613152,3.30186971,82.026,81.98,3.55356399]
[1772945613550,3.30186971,82.026,81.911,16.85252806]
[1772945613551,3.30186971,82.026,81.971,3.67069593]
[1772945613756,3.30245795,82.019,81.971,3.67069593]
[1772945614060,3.30245795,82.019,81.97,3.55356399]
[1772945614351,21.923,82.108,81.961,3.67069593]
[1772945614352,3.28990198,82.049,81.99,3.55356399]
[1772945614558,3.28990198,82.069,82.011,3.67069593]
[1772945614859,3.28990198,82.107,82.011,3.67069593]
[1772945615261,3.28990198,82.089,81.991,3.67069593]
[1772945615960,3.28990198,82.085,82.001,3.67069593]
[1772945616345,7.52258957,82.11,82.001,3.67069593]
[1772945617457,9.72415618,82.146,82.021,3.97330224]
[1772945617458,8.91268759,82.13,82.021,3.97330224]
[1772945618055,8.91268759,82.13,82.041,3.97330224]
[1772945618358,8.91268759,82.13,81.97,70.91268759]
[1772945618359,0.19541169,82.149,82.061,3.97180212]
[1772945618754,0.19541169,82.146,82.061,3.97180212]
[1772945620556,0.19541169,82.146,82.081,4.00748586]
[1772945621855,0.12404421,82.162,82.101,4.00748586]
[1772945622859,14.78257705,82.246,82.028,209.38381262]
[1772945622860,0.15928457,82.161,82.07,8.91268759]
[1772945623058,0.15928457,82.161,82.062,3.98986568]
[1772945623552,0.15928457,82.137,82.062,3.98986568]
[1772945623757,0.15928457,82.137,82.05,8.91268759]
[1772945623958,0.15928457,82.137,82.051,3.98986568]
[1772945624154,0.15928457,82.137,82.053,3.98986568]
[1772945624653,0.25943872,82.133,82.053,3.98986568]
[1772945627153,10.958,82.131,82.053,3.98986568]
[1772945627356,0.21256413,82.13,82.041,3.9632259]
[1772945628258,0.30755346,82.125,82.043,3.91573124]
[1772945628455,0.30755346,82.125,82.028,209.38381262]
[1772945628663,0.30755346,82.119,82.029,3.91573124]
[1772945629863,0.30755346,82.11,82.029,3.91573124]
[1772945630859,0.29540431,82.107,82.029,3.91573124]
[1772945631459,0.29540431,82.107,82.03,10.972]
[1772945631665,0.29540431,82.107,82.031,3.92180581]
[1772945632461,10.96,82.12,82.031,3.92180581]
[1772945632462,0.29200912,82.103,82.031,3.92180581]
[1772945635470,0.29173633,82.101,82.028,209.38381262]
[1772945636171,0.3093127,82.093,82.028,209.38381262]
[1772945636370,0.3093127,82.093,82.028,213.29866423]
[1772945636866,0.3093127,82.093,82.028,3.91485161]
[1772945637469,0.3093127,82.09,82.028,3.91485161]
[1772945637864,0.3093127,82.086,82.028,3.91485161]
[1772945638067,0.32276882,82.079,81.971,3.91485161]
[1772945638871,0.32276882,82.061,81.983,3.90812355]
[1772945639770,0.32276882,82.061,81.97,70.91268759]
[1772945639771,0.32276882,82.061,81.988,3.90812355]
[1772945640766,294.50696738,82.083,81.913,21.975]
[1772945640767,0.33169337,82.046,81.951,3.90366128]
[1772945641863,0.33296761,82.044,81.976,4.06761681]
[1772945642272,0.12239803,82.02,81.935,4.06761681]
[1772945642474,0.12029612,82.039,81.935,4.06761681]
[1772945642671,0.12029612,82.039,81.951,4.00894607]
[1772945642864,0.12029612,82.078,81.993,4.00894607]
[1772945643270,0.12029612,82.078,82.011,4.00899036]
[1772945644676,0.10235337,82.075,82.011,4.00899036]
[1772945645371,0.10235337,82.068,82.011,4.00899036]
[1772945646276,0.10235337,82.068,81.992,4.03095326]
[1772945646874,0.07628174,82.053,81.992,4.03095326]
[1772945647467,0.07628174,82.05,81.992,4.03095326]
[1772945648779,10.97,82.046,81.992,4.03095326]
[1772945648980,0.09301515,82.045,81.992,4.03095326]
[1772945649384,8.91268759,82.07,81.95,62.0]
[1772945649385,0.09301515,82.043,81.953,4.02258655]
[1772945650276,0.08990927,82.04,81.953,4.02258655]
[1772945650879,0.08990927,82.04,81.958,4.02413949]
[1772945651080,0.08990927,82.038,81.958,4.02413949]
[1772945651278,14.78257705,82.088,81.958,4.02413949]
[1772945651279,0.08990927,82.029,81.958,4.02413949]
[1772945651584,0.08990927,82.027,81.931,4.02413949]
[1772945651779,0.08990927,82.017,81.932,4.02413949]
[1772945651977,0.08990927,82.009,81.916,4.02413949]
[1772945652181,22.35551519,82.068,81.916,4.02413949]
[1772945652182,0.08282781,82.006,81.916,4.02413949]
[1772945652479,0.08282781,82.004,81.92,8.91268759]
[1772945652683,0.08282781,82.004,81.921,4.02768023]
[1772945652878,0.08282781,82.002,81.921,4.02768023]
[1772945653077,0.08282781,81.989,81.912,4.02768023]
[1772945653472,0.08282781,81.984,81.912,4.02768023]
[1772945654179,0.08282781,81.975,81.912,4.02768023]
[1772945654478,0.20861517,81.969,81.895,3.96478654]
[1772945654684,0.20861517,81.956,81.895,3.96478654]
[1772945655076,10.982,81.955,81.895,3.96478654]
[1772945655377,0.20861517,81.988,81.912,3.96478654]
[1772945655979,0.20861517,81.986,81.912,3.96478654]
[1772945656181,0.20861517,81.986,81.894,3.86223746]
[1772945656381,0.41371334,81.955,81.894,3.86223746]
[1772945657784,3.98149243,81.941,81.847,10.996]
[1772945657979,3.98149243,81.941,81.86,8.91268759]
[1772945658183,3.98149243,81.941,81.832,2.12462644]
[1772945658484,10.984,81.94,81.86,8.91268759]
[1772945658684,3.98149243,81.941,81.86,8.91268759]
[1772945658983,3.98149243,81.958,81.88,8.91268759]
[1772945659283,3.98149243,81.958,81.86,8.91268759]
[1772945659878,10.983,81.944,81.864,3.68242785]
[1772945660081,3.98149243,81.943,81.864,3.68242785]
[1772945660475,10.985,81.931,81.864,3.68242785]
[1772945661686,3.98149243,81.943,81.871,3.68242785]
[1772945661687,10.983,81.943,81.871,3.68242785]
[1772945661983,3.98149243,81.977,81.891,3.68242785]
[1772945662280,21.942,82.039,81.891,3.68242785]
[1772945662281,3.98149243,81.96,81.891,3.68242785]
[1772945663978,10.982,81.954,81.891,3.68242785]
[1772945664181,3.98149243,81.96,81.891,3.68242785]
[1772945664376,3.98149243,81.999,81.891,3.68242785]
[1772945664782,10.979,81.977,81.895,3.68242785]
[1772945664978,10.979,81.977,81.911,3.68242785]
[1772945665982,3.98149243,81.967,81.911,3.68242785]
[1772945666892,10.981,81.964,81.911,3.68242785]
[1772945667585,14.96249243,81.964,81.911,3.68242785]
[1772945667784,3.98149243,81.957,81.881,3.68242785]
[1772945668184,10.985,81.933,81.881,3.68242785]
[1772945668386,3.98149243,81.94,81.881,3.68242785]
[1772945668985,3.98149243,81.939,81.881,3.68242785]
[1772945669192,3.98149243,81.939,81.861,3.68242785]
[1772945669592,10.986,81.924,81.861,3.68242785]
[1772945671102,3.98149243,81.92,81.844,3.68242785]
[1772945671502,3.98149243,81.92,81.851,3.68242785]
[1772945671900,3.98149243,81.899,81.813,3.68242785]
[1772945672208,8.93688084,81.9,81.751,22.019]
[1772945672209,3.98149243,81.879,81.791,3.68242785]
[1772945672408,3.98149243,81.879,81.806,3.83530359]
[1772945672808,3.68656742,81.876,81.806,3.83530359]
[1772945673010,3.68656742,81.907,81.821,3.83530359]
[1772945673508,3.68656742,81.894,81.821,3.83530359]
[1772945674707,3.68656742,81.893,81.821,3.83530359]
[1772945675007,298.26325172,81.908,81.861,3.83530359]
[1772945675603,3.68656742,81.93,81.871,3.83530359]
[1772945675806,3.68656742,81.93,81.83,8.93688084]
[1772945675807,3.68656742,81.959,81.891,3.83530359]
[1772945675996,8.93688084,82.0,81.798,195.24]
[1772945675997,3.68656742,81.957,81.798,195.24]
[1772945676205,3.68656742,81.957,81.851,3.83530359]
[1772945676804,3.68656742,81.932,81.871,3.83530359]
[1772945677007,3.68656742,81.932,81.799,3.83530359]
[1772945677207,3.68656742,81.932,81.831,3.83530359]
[1772945677609,3.68656742,81.932,81.851,3.83530359]
[1772945678707,3.68656742,81.932,81.798,195.24]
[1772945678708,3.68656742,81.959,81.871,3.83530359]
[1772945679310,10.985,81.929,81.871,3.83530359]
[1772945680011,10.984,81.941,81.871,3.83530359]
[1772945683015,3.68656742,81.942,81.871,3.83530359]
[1772945683214,10.982,81.952,81.871,3.83530359]
[1772945683615,10.984,81.938,81.871,3.83530359]
[1772945683819,3.68656742,81.959,81.871,3.83530359]
[1772945684814,10.982,81.953,81.875,3.83530359]
[1772945685019,10.982,81.953,81.891,3.83530359]
[1772945689623,3.68656742,81.947,81.891,3.83530359]
[1772945690827,11.24981334,81.989,81.891,3.83530359]
[1772945690828,3.68656742,81.941,81.891,3.83530359]
[1772945691523,3.68656742,81.941,81.875,14.82730359]
[1772945691727,3.68656742,81.941,81.876,3.83530359]
[1772945692029,10.984,81.935,81.876,3.83530359]
[1772945692625,10.985,81.93,81.876,3.83530359]
[1772945695930,3.68656742,81.926,81.857,3.83530359]
[1772945697034,10.987,81.913,81.857,3.83530359]
[1772945699833,3.68656742,81.912,81.857,3.83530359]
[1772945700725,3.68656742,81.898,81.81,8.93688084]
[1772945700929,3.68656742,81.889,81.81,3.83530359]
[1772945701128,3.68656742,81.887,81.81,3.83530359]
[1772945701429,3.73278038,81.862,81.791,3.67535075]
[1772945701632,3.73278038,81.862,81.729,195.24]
[1772945701633,3.73278038,81.862,81.73,3.67535075]
[1772945701827,3.73278038,81.836,81.749,3.67535075]
[1772945702032,3.73278038,81.834,81.741,3.67535075]
[1772945702729,3.89008643,81.818,81.721,4.05100402]
[1772945703131,3.89008643,81.81,81.731,4.05100402]
[1772945703832,3.89008643,81.81,81.708,4.05100402]
[1772945703833,3.89008643,81.805,81.708,4.05100402]
[1772945704235,3.89008643,81.805,81.711,4.05100402]
[1772945704632,3.77363736,81.792,81.711,4.05100402]
[1772945705032,3.77363736,81.779,81.693,4.05100402]
[1772945705234,3.77363736,81.745,81.701,0.00098798]
[1772945706340,11.011,81.741,81.701,0.00098798]
[1772945706532,3.36235422,81.769,81.701,4.051992]
[1772945706738,3.36235422,81.799,81.711,4.05100402]
[1772945707336,3.36235422,81.799,81.721,4.05100402]
[1772945707539,3.36235422,81.829,81.721,4.05100402]
[1772945707738,3.36235422,81.823,81.741,4.05100402]
[1772945707935,3.36235422,81.823,81.761,4.05100402]
[1772945708136,3.36235422,81.84,81.761,4.05100402]
[1772945708533,3.33102448,81.889,81.801,4.05100402]
[1772945709737,3.33102448,81.887,81.811,4.05100402]
[1772945710744,3.3511431,81.909,81.811,4.05100402]
[1772945711237,3.3511431,81.902,81.811,4.05100402]
[1772945711743,3.3511431,81.897,81.811,4.05100402]
[1772945711931,3.3511431,81.897,81.811,11.001]
[1772945712136,3.3511431,81.897,81.831,4.05100402]
[1772945712535,3.54539912,81.896,81.811,4.05100402]
[1772945713141,3.54539912,81.896,81.831,4.05100402]
[1772945713940,3.54539912,81.919,81.831,4.05100402]
[1772945714640,3.54539912,81.919,81.851,4.05100402]
[1772945715037,3.54539912,81.919,81.831,4.05100402]
[1772945715243,3.53577887,81.892,81.831,4.05100402]
[1772945716347,3.54945633,81.877,81.788,4.05100402]
[1772945717837,10.992,81.876,81.791,11.004]
[1772945718036,10.992,81.876,81.792,4.05100402]
[1772945718847,14.49136919,81.873,81.794,4.05100402]
[1772945719749,10.991,81.887,81.801,4.05100402]
[1772945720248,10.992,81.882,81.803,4.05100402]
[1772945720743,10.993,81.87,81.803,4.05100402]
[1772945720949,3.49935675,81.869,81.783,4.05100402]
[1772945721346,3.49935675,81.849,81.783,4.05100402]
[1772945721549,10.998,81.833,81.783,4.05100402]
[1772945721749,3.49935675,81.849,81.757,4.05100402]
[1772945722347,10.998,81.834,81.761,4.05100402]
[1772945722546,3.49935675,81.849,81.761,4.05100402]
[1772945723749,10.996,81.846,81.762,11.008]
[1772945723947,10.996,81.846,81.763,4.05100402]
[1772945724551,3.43941377,81.87,81.778,4.05100402]
[1772945725745,3.43941377,81.87,81.77,8.95815111]
[1772945725746,10.995,81.856,81.78,4.05100402]
[1772945726251,3.43941377,81.856,81.78,4.05100402]
[1772945726848,3.43941377,81.856,81.761,4.05100402]
[1772945727348,10.998,81.83,81.761,4.05100402]
[1772945727948,10.996,81.846,81.761,4.05100402]
[1772945728445,3.43971546,81.854,81.779,4.05100402]
[1772945728646,10.995,81.858,81.781,4.05100402]
[1772945729150,10.995,81.858,81.785,4.05100402]
[1772945730549,10.995,81.858,81.788,4.05100402]
[1772945731854,10.995,81.858,81.79,4.05100402]
[1772945732252,14.43578242,81.856,81.79,4.05100402]
[1772945732448,3.44078242,81.855,81.79,4.05100402]
[1772945732653,3.44078242,81.855,81.769,3.77400282]
[1772945733049,10.998,81.833,81.772,3.77400282]
[1772945733249,3.44078242,81.855,81.772,3.77400282]
[1772945733649,3.44078242,81.855,81.787,3.77400282]
[1772945734259,3.22009844,81.889,81.796,3.77400282]
[1772945734756,3.22009844,81.889,81.799,3.77400282]
[1772945735855,14.21209844,81.878,81.808,3.77400282]
[1772945736055,3.22009844,81.877,81.808,3.77400282]
[1772945736650,8.95815111,81.89,81.808,3.77400282]
[1772945736651,3.27246518,81.87,81.808,3.77400282]
[1772945737052,3.27246518,81.909,81.808,3.77400282]
[1772945737359,3.27246518,81.892,81.819,3.77400282]
[1772945737754,10.993,81.87,81.819,3.77400282]
[1772945737953,3.27246518,81.876,81.819,3.77400282]
[1772945738352,10.992,81.881,81.82,3.77400282]
[1772945738865,10.99,81.892,81.82,3.77400282]
[1772945739053,14.26105237,81.892,81.82,3.77400282]
[1772945739258,3.27105237,81.891,81.82,3.77400282]
[1772945740756,10.991,81.884,81.82,3.77400282]
[1772945742864,10.991,81.884,81.822,3.77400282]
[1772945743062,14.21605978,81.884,81.822,3.77400282]
[1772945743261,10.992,81.878,81.822,3.77400282]
[1772945743968,10.991,81.889,81.823,3.77400282]
[1772945744165,3.22505978,81.888,81.823,3.77400282]
[1772945744559,3.22505978,81.888,81.825,3.77400282]
[1772945745366,10.991,81.885,81.827,3.77400282]
[1772945745679,10.991,81.885,81.831,3.77400282]
[1772945746169,10.992,81.876,81.831,3.77400282]
[1772945747467,10.994,81.867,81.831,3.77400282]
[1772945747667,3.22631967,81.887,81.811,3.77400282]
[1772945749071,3.20337738,81.878,81.811,3.77400282]
[1772945750070,3.20337738,81.878,81.813,3.77400282]
[1772945751578,3.06939611,81.867,81.795,3.77400282]
[1772945752678,3.06939611,81.867,81.806,3.77400282]
[1772945753376,14.78257705,81.91,81.8,8.95815111]
[1772945753377,3.14211706,81.881,81.818,3.77400282]
[1772945754171,3.14211706,81.881,81.82,3.77400282]
[1772945754871,3.14211706,81.881,81.824,3.77400282]
[1772945755077,3.13774755,81.9,81.824,3.77400282]
[1772945755275,3.13774755,81.898,81.824,3.77400282]
[1772945755676,3.13774755,81.898,81.838,3.77400282]
[1772945756971,3.13946813,81.89,81.822,3.77400282]
[1772945757573,3.13946813,81.89,81.823,3.77400282]
[1772945758280,3.13946813,81.89,81.83,3.77400282]
[1772945759781,3.13946813,81.89,81.832,3.77400282]
[1772945760381,3.13946813,81.89,81.834,3.77400282]
[1772945760777,10.989,81.9,81.834,3.77400282]
[1772945761083,3.31119956,81.899,81.834,3.77400282]
[1772945761279,3.31119956,81.899,81.77,12.17]
[1772945761280,10.988,81.911,81.837,3.77400282]
[1772945761779,10.986,81.922,81.859,3.95665238]
[1772945761979,3.31013288,81.931,81.859,3.95665238]
[1772945763182,10.984,81.942,81.874,3.87473437]
[1772945763983,10.984,81.942,81.886,3.87473437]
[1772945764484,3.31115245,81.953,81.886,3.87473437]
[1772945765588,3.31115245,81.953,81.889,3.87473437]
[1772945766187,3.31115245,81.953,81.87,70.95815111]
[1772945766188,3.41050485,81.969,81.9,3.87473437]
[1772945766891,10.981,81.957,81.9,3.87473437]
[1772945767588,303.48397047,81.976,81.903,3.87473437]
[1772945768081,303.48397047,81.976,81.921,3.87473437]
[1772945768284,303.48397047,81.976,81.927,3.87473437]
[1772945768481,3.43859769,81.999,81.927,3.87473437]
[1772945769179,10.976,81.998,81.93,3.87473437]
[1772945770588,3.37379666,81.99,81.93,3.87473437]
[1772945770795,3.37379666,81.989,81.914,3.87473437]
[1772945771494,10.978,81.983,81.914,3.87473437]
[1772945772087,10.979,81.972,81.914,3.87473437]
[1772945772994,3.37939227,81.969,81.883,3.87473437]
[1772945773394,3.37939227,81.969,81.898,3.87473437]
[1772945774792,3.37939227,81.969,81.903,3.87473437]
[1772945775693,10.978,81.985,81.907,10.988]
[1772945775895,10.978,81.985,81.908,3.87473437]
[1772945776293,3.19362859,81.984,81.908,3.87473437]
[1772945777892,10.979,81.975,81.914,3.87473437]
[1772945778097,3.19362859,81.984,81.914,3.87473437]
[1772945779496,3.21897483,81.98,81.914,3.87473437]